fUSD/lending_fUSD_20240715
["ID","MTS","AMOUNT","RATE_DAILY","PERIOD"]
[332222978,1721051438373,-150.0,0.00011398,2]
[332222979,1721051438382,-255.0,0.00011525,2]
[332222980,1721051438392,-500.0,0.00011614,2]
[332222981,1721051438401,-13.11368324,0.00011632,2]
[332222982,1721051438439,-829.66631676,0.00011632,2]
[332222983,1721051438449,-151.9,0.00011775,2]
[332222984,1721051438458,-2209.85,0.00011873,2]
[332222985,1721051438468,-420.0,0.00012029,2]
[332222986,1721051438477,-1000.0,0.00012283,2]
[332222987,1721051438486,-1266.3458359,0.00012302,2]
[332222988,1721051438495,-178.4,0.00012337,2]
[332222989,1721051438505,-255.0,0.00012638,2]
[332222990,1721051438517,-2309.41,0.00012784,2]
[332222991,1721051438527,-9145.19261963,0.00012883,2]
[332222992,1721051438535,-9145.19261963,0.00012883,2]
[332222993,1721051438545,-270.65,0.00012962,2]
[332222994,1721051438554,-1250.0,0.00013,2]
[332222995,1721051438564,-170.07,0.00013002,2]
[332222996,1721051438573,-272.9328,0.00013028,2]
[332222997,1721051438582,-10087.7603,0.00013041,2]
[332222998,1721051438591,-587.0,0.0001322,2]
[332222999,1721051438601,-419.67,0.00013241,2]
[332223001,1721051438611,-419.67,0.00013241,2]
[332223002,1721051438620,-419.67,0.00013241,2]
[332223003,1721051438630,-419.13,0.00013241,2]
[332223004,1721051438639,-419.67,0.00013341,2]
[332223005,1721051438648,-2500.0,0.00013398,2]
[332223006,1721051438657,-419.67,0.00013441,2]
[332223007,1721051438667,-159.660219,0.00013498,2]
[332223008,1721051438676,-203.95818928,0.00013498,2]
[332223009,1721051438684,-343.04324584,0.00013498,2]
[332223010,1721051438694,-4492.5142,0.00013498,2]
[332223011,1721051438703,-33323.6848,0.00013498,2]
[332223014,1721051438712,-44215.068,0.00013598,2]
[332223017,1721051438722,-170.24,0.00013619,2]
[332223020,1721051438731,-954.42,0.00013629,2]
[332223024,1721051438740,-1000.0,0.00013648,2]
[332223027,1721051438749,-500.0,0.00013698,2]
[332223029,1721051438759,-474.76,0.00013698,2]
[332223031,1721051438770,-510.5946521,0.00013698,2]
[332223033,1721051438782,-192.07215388,0.00013698,2]
[332223035,1721051438791,-500.0,0.00013698,2]
[332223037,1721051438800,-658.15,0.00013698,2]
[332223039,1721051438811,-504.54044564,0.00013698,2]
[332223041,1721051438820,-500.0,0.00013698,2]
[332223043,1721051438829,-500.0,0.00013698,2]
[332223045,1721051438839,-500.0,0.00013698,2]
[332223047,1721051438848,-293.71591696,0.00013698,2]
[332223049,1721051438859,-229.91024583,0.00013698,2]
[332223050,1721051438868,-531.81094113,0.00013698,2]
[332223053,1721051438878,-537.23051564,0.00013698,2]
[332223055,1721051438887,-188.84842309,0.00013698,2]
[332223057,1721051438896,-579.68928284,0.00013698,2]
[332223058,1721051438905,-235.58631778,0.00013698,2]
[332223060,1721051438915,-163.91155174,0.00013698,2]
[332223062,1721051438924,-204.85630195,0.00013698,2]
[332223064,1721051438934,-270.41366998,0.00013698,2]
[332223066,1721051438943,-566.00737111,0.00013698,2]
[332223068,1721051438952,-500.0,0.00013698,2]
[332223070,1721051438962,-500.0,0.00013698,2]
[332223072,1721051438972,-500.0,0.00013698,2]
[332223074,1721051438982,-181.4045559,0.00013698,2]
[332223076,1721051438991,-500.0,0.00013698,2]
[332223078,1721051439000,-500.0,0.00013698,2]
[332223080,1721051439010,-645.28264739,0.00013698,2]
[332223082,1721051439021,-508.82186501,0.00013698,2]
[332223084,1721051439030,-500.0,0.00013698,2]
[332223086,1721051439040,-500.0,0.00013698,2]
[332223088,1721051439049,-228.05552413,0.00013698,2]
[332223090,1721051439059,-500.0,0.00013698,2]
[332223092,1721051439068,-500.0,0.00013698,2]
[332223094,1721051439077,-500.0,0.00013698,2]
[332223096,1721051439087,-500.0,0.00013698,2]
[332223098,1721051439096,-500.0,0.00013698,2]
[332223100,1721051439105,-416.71151556,0.00013698,2]
[332223102,1721051439115,-563.63758368,0.00013698,2]
[332223104,1721051439124,-581.78852126,0.00013698,2]
[332223106,1721051439133,-577.78812226,0.00013698,2]
[332223108,1721051439143,-500.0,0.00013698,2]
[332223110,1721051439152,-500.0,0.00013698,2]
[332223112,1721051439162,-606.54,0.00013698,2]
[332223114,1721051439171,-500.0,0.00013698,2]
[332223115,1721051439181,-500.0,0.00013698,2]
[332223117,1721051439190,-500.0,0.00013698,2]
[332223119,1721051439200,-250.36570246,0.00013698,2]
[332223121,1721051439210,-901.23,0.00013698,2]
[332223123,1721051439220,-500.0,0.00013698,2]
[332223125,1721051439230,-500.0,0.00013698,2]
[332223127,1721051439239,-500.0,0.00013698,2]
[332223129,1721051439249,-292.2626264,0.00013698,2]
[332223131,1721051439258,-1428.95,0.00013699,2]
[332223133,1721051439269,-250.0,0.00013699,2]
[332223135,1721051439278,-576.85,0.00013699,2]
[332223137,1721051439287,-8121.16,0.00013699,2]
[332223139,1721051439297,-159.660219,0.00013723,2]
[332223141,1721051439307,-529.36820483,0.00013736,2]
[332223143,1721051439317,-500.0,0.00013753,2]
[332223145,1721051439326,-500.0,0.00013753,2]
[332223147,1721051439336,-658.15,0.00013753,2]
[332223149,1721051439345,-500.0,0.00013753,2]
[332223151,1721051439355,-261.40101993,0.00013753,2]
[332223153,1721051439367,-516.15,0.00013753,2]
[332223155,1721051439377,-500.0,0.00013753,2]
[332223157,1721051439386,-500.0,0.00013753,2]
[332223159,1721051439396,-425.91853166,0.00013753,2]
[332223161,1721051439405,-500.0,0.00013753,2]
[332223163,1721051439414,-276.14,0.00013753,2]
[332223165,1721051439424,-433.6495994,0.00013753,2]
[332223167,1721051439434,-500.0,0.00013753,2]
[332223169,1721051439444,-606.54,0.00013753,2]
[332223171,1721051439453,-901.23,0.00013753,2]
[332223173,1721051439463,-500.0,0.00013753,2]
[332223175,1721051439472,-333.6854996,0.00013753,2]
[332223177,1721051439482,-156.08502794,0.0001379,2]
[332223178,1721051439491,-156.0850279,0.0001379,2]
[332223180,1721051439500,-156.0850279,0.0001379,2]
[332223182,1721051439510,-156.0850279,0.0001379,2]
[332223184,1721051439522,-156.0850279,0.0001379,2]
[332223186,1721051439532,-156.0850279,0.0001379,2]
[332223188,1721051439542,-156.0850279,0.0001379,2]
[332223190,1721051439551,-156.0850279,0.0001379,2]
[332223192,1721051439560,-156.0850279,0.0001379,2]
[332223194,1721051439570,-158.60889172,0.00013799,2]
[332223196,1721051439579,-158.60889169,0.00013799,2]
[332223198,1721051439589,-158.60889169,0.00013799,2]
[332223200,1721051439599,-158.60889169,0.00013799,2]
[332223201,1721051439608,-158.60889169,0.00013799,2]
[332223203,1721051439618,-500.0,0.00013808,2]
[332223205,1721051439627,-500.0,0.00013808,2]
[332223206,1721051439637,-658.15,0.00013808,2]
[332223208,1721051439648,-278.7255045,0.00013808,2]
[332223210,1721051439657,-500.0,0.00013808,2]
[332223212,1721051439667,-500.0,0.00013808,2]
[332223213,1721051439676,-500.0,0.00013808,2]
[332223215,1721051439686,-500.0,0.00013808,2]
[332223217,1721051439696,-606.54,0.00013808,2]
[332223219,1721051439706,-901.23,0.00013808,2]
[332223221,1721051439716,-500.0,0.00013808,2]
[332223223,1721051439725,-1757.85703762,0.0001386,2]
[332223224,1721051439734,-2566.75478,0.0001386,2]
[332223226,1721051439744,-500.0,0.00013863,2]
[332223228,1721051439755,-500.0,0.00013863,2]
[332223230,1721051439767,-658.15,0.00013863,2]
[332223231,1721051439779,-500.0,0.00013863,2]
[332223233,1721051439789,-500.0,0.00013863,2]
[332223235,1721051439799,-256.19729385,0.00013863,2]
[332223237,1721051439809,-606.54,0.00013863,2]
[332223239,1721051439819,-901.23,0.00013863,2]
[332223240,1721051439828,-500.0,0.00013863,2]
[332223242,1721051439838,-500.0,0.00013887,2]
[332223244,1721051439847,-500.0,0.00013888,2]
[332223245,1721051439856,-200.0,0.00013888,2]
[332223247,1721051439866,-796.63488233,0.00013889,2]
[332223249,1721051439876,-353.5382,0.00013899,2]
[332223251,1721051439886,-164.03533166,0.00013899,2]
[332223253,1721051439896,-266.73419059,0.00013899,2]
[332223255,1721051439905,-158.78655632,0.00013899,2]
[332223256,1721051439915,-713.231984,0.000139,2]
[332223258,1721051439924,-174.49944535,0.000139,2]
[332223260,1721051439934,-156.0850279,0.000139,2]
[332223262,1721051439943,-343.04324584,0.000139,2]
[332223263,1721051439952,-545.3628559,0.000139,2]
[332223265,1721051439962,-500.0,0.00013917,2]
[332223267,1721051439972,-658.15,0.00013917,2]
[332223269,1721051439982,-500.0,0.00013917,2]
[332223271,1721051439991,-500.0,0.00013917,2]
[332223273,1721051440001,-606.54,0.00013917,2]
[332223274,1721051440010,-901.23,0.00013917,2]
[332223276,1721051440021,-500.0,0.00013917,2]
[332223278,1721051440031,-202.63259192,0.00013922,2]
[332223280,1721051440041,-1000.0,0.0001393,2]
[332223282,1721051440051,-1000.0,0.0001393,2]
[332223284,1721051440060,-1000.0,0.0001393,2]
[332223286,1721051440070,-1000.0,0.0001393,2]
[332223289,1721051440079,-1000.0,0.0001393,2]
[332223292,1721051440089,-1000.0,0.0001393,2]
[332223294,1721051440099,-1000.0,0.0001393,2]
[332223296,1721051440109,-1000.0,0.0001393,2]
[332223297,1721051440118,-1000.0,0.0001393,2]
[332223299,1721051440128,-159.660219,0.00013948,2]
[332223301,1721051440137,-172.13810884,0.00013959,2]
[332223303,1721051440147,-189.88717392,0.00013959,2]
[332223305,1721051440156,-526.86658896,0.00013959,2]
[332223306,1721051440166,-507.25381852,0.00013959,2]
[332223308,1721051440176,-594.57,0.00013959,2]
[332223310,1721051440186,-506.15542656,0.00013959,2]
[332223312,1721051440195,-500.0,0.00013959,2]
[332223315,1721051440207,-500.0,0.00013959,2]
[332223318,1721051440219,-500.0,0.00013959,2]
[332223321,1721051440232,-500.0,0.00013959,2]
[332223323,1721051440244,-500.0,0.00013959,2]
[332223325,1721051440256,-453.08171643,0.00013959,2]
[332223327,1721051440271,-500.0,0.00013959,2]
[332223329,1721051440282,-500.0,0.00013959,2]
[332223331,1721051440292,-526.74788704,0.00013959,2]
[332223333,1721051440304,-500.0,0.00013959,2]
[332223335,1721051440317,-555.73854827,0.00013959,2]
[332223337,1721051440328,-526.44813976,0.00013959,2]
[332223339,1721051440340,-331.37946458,0.00013959,2]
[332223341,1721051440352,-575.34145316,0.00013959,2]
[332223343,1721051440365,-512.32397477,0.00013959,2]
[332223345,1721051440377,-575.84930131,0.00013959,2]
[332223347,1721051440389,-500.0,0.00013959,2]
[332223349,1721051440401,-560.70243365,0.00013959,2]
[332223351,1721051440413,-500.0,0.00013959,2]
[332223353,1721051440425,-500.0,0.00013959,2]
[332223355,1721051440437,-500.0,0.00013959,2]
[332223357,1721051440451,-500.0,0.00013959,2]
[332223360,1721051440463,-500.0,0.00013959,2]
[332223362,1721051440475,-500.0,0.00013959,2]
[332223364,1721051440487,-391.58453021,0.00013959,2]
[332223365,1721051440498,-514.22849316,0.00013959,2]
[332223367,1721051440509,-500.0,0.00013959,2]
[332223370,1721051440525,-404.14180588,0.00013959,2]
[332223372,1721051440536,-500.0,0.00013959,2]
[332223374,1721051440549,-208.38213135,0.00013959,2]
[332223376,1721051440560,-500.0,0.00013959,2]
[332223378,1721051440571,-500.0,0.00013959,2]
[332223380,1721051440582,-500.0,0.00013959,2]
[332223382,1721051440593,-500.0,0.00013959,2]
[332223383,1721051440603,-500.0,0.00013959,2]
[332223385,1721051440614,-500.0,0.00013959,2]
[332223388,1721051440626,-497.85981287,0.00013959,2]
[332223390,1721051440637,-500.0,0.00013959,2]
[332223392,1721051440651,-389.68682987,0.00013959,2]
[332223394,1721051440663,-500.0,0.00013959,2]
[332223396,1721051440674,-500.0,0.00013959,2]
[332223397,1721051440686,-188.04529639,0.00013959,2]
[332223399,1721051440698,-500.0,0.00013959,2]
[332223401,1721051440709,-500.0,0.00013959,2]
[332223403,1721051440721,-500.0,0.00013959,2]
[332223405,1721051440734,-511.59561152,0.00013959,2]
[332223407,1721051440746,-151.86,0.00013959,2]
[332223410,1721051440759,-290.17,0.00013959,2]
[332223412,1721051440773,-500.0,0.00013959,2]
[332223413,1721051440786,-500.0,0.00013959,2]
[332223415,1721051440796,-1660.0,0.0001396,2]
[332223417,1721051440805,-1252.0,0.0001396,2]
[332223419,1721051440816,-1832.0,0.0001396,2]
[332223421,1721051440826,-361.0,0.0001396,2]
[332223423,1721051440836,-809.0,0.0001396,2]
[332223425,1721051440847,-619.0,0.0001396,2]
[332223427,1721051440859,-444.0,0.0001396,2]
[332223429,1721051440872,-449.0,0.0001396,2]
[332223431,1721051440884,-541.79,0.0001396,2]
[332223433,1721051440896,-1990.0,0.0001396,2]
[332223435,1721051440906,-3277.0,0.0001396,2]
[332223437,1721051440916,-5183.0,0.0001396,2]
[332223439,1721051440927,-150.501,0.0001396,2]
[332223441,1721051440941,-5818.0,0.0001396,2]
[332223443,1721051440953,-1666.0,0.0001396,2]
[332223445,1721051440963,-200.0,0.0001396,2]
[332223447,1721051440975,-38292.0,0.0001396,2]
[332223449,1721051440986,-1200.0,0.0001396,2]
[332223451,1721051440997,-934.447,0.0001396,2]
[332223453,1721051441008,-292.60824284,0.00013972,2]
[332223455,1721051441022,-658.15,0.00013972,2]
[332223457,1721051441032,-500.0,0.00013972,2]
[332223459,1721051441043,-500.0,0.00013972,2]
[332223461,1721051441054,-606.54,0.00013972,2]
[332223463,1721051441065,-901.23,0.00013972,2]
[332223465,1721051441077,-503.99199996,0.00013972,2]
[332223467,1721051441089,-246.46,0.00013988,2]
[332223469,1721051441101,-500.0,0.00013989,2]
[332223471,1721051441112,-276.28471959,0.00013989,2]
[332223473,1721051441125,-616.92384194,0.00013989,2]
[332223475,1721051441136,-616.92384194,0.00013989,2]
[332223477,1721051441146,-155.0,0.00013989,2]
[332223478,1721051441157,-500.0,0.0001399,2]
[332223479,1721051441167,-500.0,0.0001399,2]
[332223480,1721051441178,-500.0,0.0001399,2]
[332223481,1721051441188,-1100.0,0.0001399,2]
[332223482,1721051441199,-1100.0,0.0001399,2]
[332223483,1721051441210,-9599.1139287,0.00013995,2]
[332223484,1721051441221,-618.8614087,0.00013995,2]
[332223485,1721051441231,-1536.6034206,0.00013995,2]
[332223486,1721051441242,-2562.44261859,0.00013997,2]
[332223487,1721051441252,-229.40141699,0.00013999,2]
[332223488,1721051441262,-500.0,0.00013999,2]
[332223489,1721051441279,-500.0,0.00013999,2]
[332223490,1721051441290,-520.47316949,0.00013999,2]
[332223492,1721051441301,-500.0,0.00013999,2]
[332223494,1721051441312,-192.85501938,0.00013999,2]
[332223496,1721051441323,-500.0,0.00013999,2]
[332223498,1721051441335,-244.99947165,0.00013999,2]
[332223501,1721051441348,-737.98964315,0.00013999,5]
[332223503,1721051441359,-443.14,0.00013999,2]
[332223505,1721051441370,-442.45218269,0.00013999,2]
[332223507,1721051441380,-372.72881406,0.00013999,2]
[332223509,1721051441391,-176.3604815,0.00013999,2]
[332223511,1721051441401,-158.93654451,0.00013999,2]
[332223513,1721051441412,-1603.64745149,0.00014,2]
[332223515,1721051441423,-5813.89288119,0.00014,2]
[332223518,1721051441441,-117207.45797075,0.00014,2]
[332223520,1721051441453,-633.0,0.00014,2]
[332223522,1721051441464,-591248.65236922,0.00014,2]
[332223525,1721051441477,-15988.47165043,0.00014,2]
[332223527,1721051441490,-380.30843984,0.00014,2]
[332223530,1721051441512,-171.47,0.00012316,2]
[332223533,1721051441525,-175172.7911716,0.00014,2]
[332223539,1721051441581,-1000.0,0.0001393,2]
[332223542,1721051441592,-1000.0,0.0001393,2]
[332223544,1721051441603,-237777.79547435,0.00014,2]
[332223547,1721051441624,-6310.1952,0.00014,2]
[332223549,1721051441638,-643.23488832,0.00014,2]
[332223552,1721051441650,-360.29,0.00014,2]
[332223554,1721051441663,-4120.71235,0.00014,2]
[332223556,1721051441676,-682.5634499,0.00014,2]
[332223559,1721051441689,-2427.90510012,0.00014,2]
[332223561,1721051441701,-727.40483639,0.00014,2]
[332223564,1721051441714,-2942.65,0.00014,2]
[332223596,1721051442022,-5045.4,0.00014,2]
[332223755,1721051443347,-158.60889169,0.00013799,2]
[332223757,1721051443359,-1000.0,0.0001393,2]
[332223759,1721051443369,-1000.0,0.0001393,2]
[332223762,1721051443381,-1000.0,0.0001393,2]
[332223764,1721051443391,-93.20873228,0.0001399,3]
[332223766,1721051443404,-122.75126772,0.0001399,3]
[332223768,1721051443415,-1545.27170336,0.00014,2]
[332223772,1721051443446,-290188.19829692,0.00014,2]
[332223776,1721051443468,-79441.5878515,0.00014,2]
[332223779,1721051443490,-1662.21208948,0.00014,2]
[332223781,1721051443503,-1749.67855384,0.00014,2]
[332223784,1721051443516,-12973.483531,0.00014,2]
[332223792,1721051443586,-5579.18028061,0.00014,2]
[332223794,1721051443599,-301.88012184,0.00014,2]
[332223797,1721051443613,-579.35,0.00014,2]
[332223799,1721051443626,-5900.2399086,0.00014,2]
[332223809,1721051443712,-3262.44251899,0.00014,2]
[332224048,1721051446276,-207.0074405,0.00013269,2]
[332224050,1721051446287,-158.60889169,0.00013799,2]
[332224052,1721051446297,-982.62574673,0.0001393,2]
[332224082,1721051446556,-17.37425327,0.0001393,2]
[332224084,1721051446570,-1000.0,0.0001393,2]
[332224086,1721051446580,-1000.0,0.0001393,2]
[332224088,1721051446589,-10097.99435526,0.00014,2]
[332224090,1721051446600,-284.97374872,0.00014,2]
[332224095,1721051446639,-2609.99752265,0.00014,2]
[332224098,1721051446660,-508.5,0.00014,2]
[332224101,1721051446671,-2800.21661438,0.00014,2]
[332224103,1721051446682,-484.13533013,0.00014,2]
[332224105,1721051446693,-11182.99173202,0.00014,2]
[332224107,1721051446704,-462.43344098,0.00014,2]
[332224109,1721051446715,-3812.8620695,0.00014,2]
[332224112,1721051446727,-1246.58900404,0.00014,2]
[332224131,1721051446911,-4862.40204004,0.00014,2]
[332224133,1721051446922,-808.19400001,0.00014,2]
[332224135,1721051446933,-261.67117911,0.00014,2]
[332224646,1721051531763,2037.34,0.00027,120]
[332224647,1721051589304,2741.5970486,0.0002,30]
[332224658,1721051900774,3000.0,0.00025,60]
[332224660,1721051946457,3367.54,0.00025,60]
[332224663,1721051996179,-2976.4199,0.00010148,2]
[332224665,1721052111274,-1583.6077612,0.00010048,2]
[332224666,1721052111287,-3149.7844776,0.00010048,2]
[332224667,1721052111296,-300.0,0.00010147,2]
[332224668,1721052111306,-1221.83381837,0.00010148,2]
[332224669,1721052111316,-61.77394283,0.00010148,2]
[332224675,1721052193598,-150.0,0.00010147,2]
[332224676,1721052193628,-300.0,0.00010147,2]
[332224677,1721052193656,-899.11812171,0.00010148,2]
[332224678,1721052193685,-1368.73674718,0.00010148,2]
[332224679,1721052193714,-155.45899596,0.00010148,2]
[332224680,1721052193742,-243.2198033,0.00010148,2]
[332224681,1721052193765,-150.0,0.00010148,2]
[332224682,1721052193777,-300.0,0.00010148,2]
[332224683,1721052193788,-899.11812171,0.00010148,2]
[332224684,1721052193799,-1368.73674718,0.00010148,2]
[332224685,1721052193810,-155.45899596,0.00010148,2]
[332224686,1721052193821,-243.2198033,0.00010148,2]
[332224687,1721052193836,-337.95953956,0.00010148,2]
[332224688,1721052193845,-2560.45191306,0.00010148,2]
[332224689,1721052193855,-290.94871821,0.00010148,2]
[332224690,1721052193864,-39.57249287,0.00010148,2]
[332224691,1721052208590,173.56,9.88e-05,2]
[332224704,1721052261886,13207.16801514,9.88e-05,2]
[332224705,1721052262529,171.09493763,9.88e-05,2]
[332224706,1721052266715,20346.87145361,9.88e-05,2]
[332224707,1721052269413,155.0,9.88e-05,2]
[332224708,1721052278269,312.57252903,9.88e-05,2]
[332224709,1721052284298,620.84674392,9.88e-05,2]
[332224710,1721052286637,1453.55382322,9.88e-05,2]
[332224711,1721052288733,1368.73674718,9.88e-05,2]
[332224712,1721052295982,290.94871821,9.88e-05,2]
[332224713,1721052301160,-329.23044534,0.00010148,2]
[332224714,1721052301191,-411.93123748,0.00010148,2]
[332224715,1721052301220,-1807.62997774,0.00010148,2]
[332224716,1721052301250,-973.09,0.00010404,2]
[332224717,1721052301280,-899.85,0.00010959,2]
[332224718,1721052301311,-179.96,0.00010959,2]
[332224719,1721052301329,-329.23044534,0.00011097,2]
[332224720,1721052301340,-411.93123748,0.00011097,2]
[332224721,1721052301351,-1807.62997774,0.00011097,2]
[332224722,1721052301369,-973.09,0.00011097,2]
[332224723,1721052301380,-899.85,0.00011097,2]
[332224724,1721052301391,-179.96,0.00011097,2]
[332224725,1721052301402,-4650.4574022,0.00011097,2]
[332224726,1721052301412,-2070.15927668,0.00011098,2]
[332224728,1721052309090,356.0,0.00027,120]
[332224749,1721052360465,155.0,9.88e-05,2]
[332224762,1721052375052,-4164.48920189,0.00011098,2]
[332224772,1721052384288,164.73,9.907e-05,2]
[332224781,1721052434516,20346.87145361,9.907e-05,2]
[332224782,1721052446839,207.72673272,9.907e-05,2]
[332224783,1721052449432,256.97664425,9.907e-05,2]
[332224786,1721052477901,66229.70105465,9.907e-05,2]
[332224797,1721052518945,20000.0,0.00025,60]
[332224798,1721052526299,1506.04591424,9.907e-05,2]
[332224811,1721052543001,20346.87145361,9.907e-05,2]
[332224819,1721052603219,150.0,9.907e-05,2]
[332224820,1721052603432,150.0,9.907e-05,2]
[332224821,1721052603643,150.0,9.907e-05,2]
[332224822,1721052609014,150.0,9.907e-05,2]
[332224823,1721052609348,150.0,9.907e-05,2]
[332224824,1721052609580,238.56228848,9.907e-05,2]
[332224829,1721052631404,-1489.75692948,0.00011097,2]
[332224830,1721052631730,-6510.20738654,0.00011097,2]
[332224831,1721052631741,-504.05118627,0.00011097,2]
[332224832,1721052631751,-748.13356047,0.00011097,2]
[332224833,1721052631761,-135.41638953,0.00011097,2]
[332224834,1721052631775,-164.58361047,0.00011097,2]
[332224835,1721052631786,-681.88638953,0.00011098,2]
[332224836,1721052631800,-350.2299999,0.00011098,2]
[332224837,1721052631827,-2899.48328946,0.00011098,2]
[332224846,1721052631916,-2048.98850631,0.00011098,2]
[332224849,1721052631932,-341.2553958,0.00011098,2]
[332224851,1721052631943,-3114.29046017,0.00011098,2]
[332224853,1721052631955,-2378.18929727,0.00011098,2]
[332224854,1721052631965,-293.49284676,0.00011098,2]
[332224855,1721052631981,-2541.65120298,0.00011098,2]
[332224856,1721052631993,-1015.0419003,0.00011098,2]
[332224857,1721052632004,-2138.80689672,0.00011098,2]
[332224858,1721052632018,-317.12352756,0.00011098,2]
[332224859,1721052632029,-659.56908291,0.00011098,2]
[332224860,1721052632042,-144.30530779,0.00011098,2]
[332224861,1721052632053,-491.66952984,0.00011098,2]
[332224862,1721052632068,-304.96535249,0.00011098,2]
[332224863,1721052632079,-82.01322663,0.00011098,2]
[332224864,1721052632111,-1277.38568341,0.00011098,2]
[332224865,1721052632122,-957.97321156,0.00011098,2]
[332224866,1721052632133,-1200.0,0.00011098,2]
[332224867,1721052632143,-1354.08209341,0.00011098,2]
[332224868,1721052632154,-718.74309008,0.00011098,2]
[332224869,1721052632165,-648.50140688,0.00011098,2]
[332224870,1721052632176,-1882.27927611,0.00011098,2]
[332224871,1721052632187,-531.12735371,0.00011098,2]
[332224872,1721052632199,-155.72623509,0.00011098,2]
[332224873,1721052632210,-193.81586001,0.00011098,2]
[332224874,1721052632221,-626.61920176,0.00011098,2]
[332224875,1721052632232,-555.81296703,0.00011098,2]
[332224876,1721052632243,-266.73419059,0.00011098,2]
[332224877,1721052632255,-373.19943036,0.00011098,2]
[332224878,1721052632274,-254.58216657,0.00011098,2]
[332224879,1721052632285,-164.03533166,0.00011098,2]
[332224880,1721052632297,-155.0,0.00011098,2]
[332224881,1721052632309,-414.49823808,0.00011098,2]
[332224882,1721052632321,-155.0,0.00011098,2]
[332224883,1721052632331,-295.11496927,0.00011098,2]
[332224884,1721052632344,-203.4332955,0.00011098,2]
[332224885,1721052632354,-425.26598198,0.00011098,2]
[332224886,1721052632364,-293.35171719,0.00011098,2]
[332224887,1721052632374,-155.18777452,0.00011098,2]
[332224888,1721052632384,-155.80827537,0.00011098,2]
[332224889,1721052632395,-124.92559422,0.00011098,2]
[332224890,1721052632408,-110.09299241,0.00011098,2]
[332224891,1721052632420,-158.37926239,0.00011098,2]
[332224892,1721052632430,-616.92384194,0.00011098,2]
[332224893,1721052632441,-158.78655632,0.00011098,2]
[332224894,1721052632451,-162.22662195,0.00011098,2]
[332224895,1721052632461,-269.9884406,0.00011098,2]
[332224896,1721052632472,-155.0,0.00011098,2]
[332224897,1721052632483,-1986.28451758,0.00011098,2]
[332224898,1721052632493,-1254.63523304,0.00011098,2]
[332224899,1721052632504,-276.71293214,0.00011098,2]
[332224900,1721052632517,-1631.81375129,0.00011098,2]
[332224901,1721052632528,-4467.02483465,0.00011098,2]
[332224902,1721052632539,-811.194761,0.00011098,2]
[332224919,1721052638506,-464.81408718,0.00011098,2]
[332224920,1721052638520,-928.09634356,0.00011098,2]
[332224921,1721052638530,-167.32377463,0.00011098,2]
[332224922,1721052638541,-304.78291063,0.00011098,2]
[332224923,1721052638552,-437.69920627,0.00011098,2]
[332224924,1721052638563,-175.66694853,0.00011098,2]
[332224925,1721052638574,-155.07865353,0.00011098,2]
[332224926,1721052638585,-202.52407961,0.00011098,2]
[332224927,1721052638599,-476.27705513,0.00011098,2]
[332224928,1721052638611,-297.92202383,0.00011098,2]
[332224929,1721052638622,-292.26263749,0.00011098,2]
[332224930,1721052638632,-413.21120921,0.00011098,2]
[332224931,1721052638643,-155.0,0.00011098,2]
[332224932,1721052638653,-156.28633502,0.00011098,2]
[332224933,1721052638664,-384.45173516,0.00011098,2]
[332224934,1721052638678,-265.615,0.00011098,2]
[332224935,1721052638691,-3396.25501358,0.00011098,2]
[332224936,1721052638704,-987.45743925,0.00011098,2]
[332224937,1721052638718,-1200.86929058,0.00011098,2]
[332224938,1721052638730,-155.0,0.00011098,2]
[332224939,1721052638740,-520.8575864,0.00011098,2]
[332224940,1721052638751,-433.27749902,0.00011098,2]
[332224941,1721052638762,-889.96342784,0.00011098,2]